fUSD/lending_fUSD_20240501
["ID","MTS","AMOUNT","RATE_DAILY","PERIOD"]
[325149827,1714540259643,-500.0,0.00011506,2]
[325149828,1714540259652,-500.0,0.00011506,2]
[325149829,1714540259661,-500.0,0.00011506,2]
[325149830,1714540259670,-500.0,0.00011506,2]
[325149831,1714540259679,-500.0,0.00011506,2]
[325149832,1714540259690,-500.0,0.00011506,2]
[325149833,1714540259699,-500.0,0.00011506,2]
[325149834,1714540259708,-500.0,0.00011506,2]
[325149835,1714540259717,-500.0,0.00011506,2]
[325149836,1714540259726,-500.0,0.00011506,2]
[325149837,1714540259735,-500.0,0.00011506,2]
[325149838,1714540259744,-586.95110819,0.00011506,2]
[325149839,1714540259753,-500.0,0.00011506,2]
[325149840,1714540259762,-500.0,0.00011506,2]
[325149841,1714540259771,-500.0,0.00011506,2]
[325149842,1714540259780,-500.0,0.00011506,2]
[325149843,1714540259789,-592.74697301,0.00011506,2]
[325149844,1714540259798,-500.0,0.00011506,2]
[325149845,1714540259807,-500.0,0.00011506,2]
[325149846,1714540259816,-500.0,0.00011506,2]
[325149847,1714540259825,-500.0,0.00011506,2]
[325149848,1714540259834,-500.0,0.00011506,2]
[325149849,1714540259843,-500.0,0.00011506,2]
[325149850,1714540259851,-500.0,0.00011506,2]
[325149851,1714540259860,-500.0,0.00011506,2]
[325149852,1714540259869,-500.0,0.00011506,2]
[325149853,1714540259878,-610.7731014,0.00011506,2]
[325149854,1714540260067,-548.63,0.00011506,2]
[325149855,1714540260078,-774.37,0.00011506,2]
[325149856,1714540260087,-500.0,0.00011506,2]
[325149857,1714540260097,-500.0,0.00011506,2]
[325149858,1714540260106,-500.0,0.00011506,2]
[325149859,1714540260115,-500.0,0.00011506,2]
[325149860,1714540260125,-500.0,0.00011506,2]
[325149861,1714540260134,-500.0,0.00011506,2]
[325149862,1714540260144,-500.0,0.00011506,2]
[325149863,1714540260154,-692.91,0.00011506,2]
[325149864,1714540260164,-500.0,0.00011506,2]
[325149865,1714540260173,-500.0,0.00011506,2]
[325149866,1714540260182,-500.0,0.00011506,2]
[325149867,1714540260192,-500.0,0.00011506,2]
[325149868,1714540260201,-500.0,0.00011506,2]
[325149869,1714540260211,-500.0,0.00011506,2]
[325149870,1714540260220,-500.0,0.00011506,2]
[325149871,1714540260230,-609.21602386,0.00011506,2]
[325149872,1714540260239,-500.0,0.00011506,2]
[325149873,1714540260248,-431.74245107,0.00011506,2]
[325149874,1714540260258,-500.0,0.00011506,2]
[325149875,1714540260268,-606.67838471,0.00011506,2]
[325149876,1714540260277,-500.0,0.00011506,2]
[325149877,1714540260287,-500.0,0.00011506,2]
[325149878,1714540260296,-657.8,0.00011506,2]
[325149879,1714540260305,-500.0,0.00011506,2]
[325149880,1714540260314,-500.0,0.00011506,2]
[325149881,1714540260323,-500.0,0.00011506,2]
[325149882,1714540260333,-500.0,0.00011506,2]
[325149883,1714540260342,-500.0,0.00011506,2]
[325149884,1714540260352,-500.0,0.00011506,2]
[325149885,1714540260362,-500.0,0.00011506,2]
[325149886,1714540260371,-500.0,0.00011506,2]
[325149887,1714540260380,-500.0,0.00011506,2]
[325149888,1714540260391,-500.0,0.00011506,2]
[325149889,1714540260400,-500.0,0.00011506,2]
[325149890,1714540260410,-500.0,0.00011506,2]
[325149891,1714540260419,-500.0,0.00011506,2]
[325149892,1714540260429,-500.0,0.00011506,2]
[325149893,1714540260438,-475.0321971,0.00011506,2]
[325149894,1714540260449,-500.0,0.00011506,2]
[325149895,1714540260459,-500.0,0.00011506,2]
[325149896,1714540260469,-543.38,0.00011506,2]
[325149897,1714540260479,-500.0,0.00011506,2]
[325149898,1714540260488,-500.0,0.00011506,2]
[325149899,1714540260497,-500.0,0.00011506,2]
[325149900,1714540260509,-500.0,0.00011506,2]
[325149901,1714540260519,-500.0,0.00011506,2]
[325149902,1714540260528,-500.0,0.00011506,2]
[325149903,1714540260537,-500.0,0.00011506,2]
[325149904,1714540260547,-500.0,0.00011506,2]
[325149905,1714540260556,-500.0,0.00011506,2]
[325149906,1714540260565,-500.0,0.00011506,2]
[325149907,1714540260575,-500.0,0.00011506,2]
[325149908,1714540260587,-500.0,0.00011506,2]
[325149909,1714540260597,-500.0,0.00011506,2]
[325149910,1714540260607,-500.0,0.00011506,2]
[325149911,1714540260618,-500.0,0.00011506,2]
[325149912,1714540260627,-500.0,0.00011506,2]
[325149913,1714540260636,-568.93,0.00011506,2]
[325149914,1714540260647,-513.02031111,0.00011506,2]
[325149915,1714540260657,-516.61656947,0.00011506,2]
[325149916,1714540260667,-500.0,0.00011506,2]
[325149917,1714540260678,-150.0,0.00011506,2]
[325149918,1714540260687,-500.0,0.00011506,2]
[325149919,1714540260698,-502.86131429,0.00011506,2]
[325149920,1714540260707,-500.0,0.00011506,2]
[325149921,1714540260716,-500.0,0.00011506,2]
[325149922,1714540260726,-500.0,0.00011506,2]
[325149923,1714540260735,-500.0,0.00011506,2]
[325149924,1714540260745,-500.0,0.00011506,2]
[325149925,1714540260756,-500.0,0.00011506,2]
[325149926,1714540260766,-500.0,0.00011506,2]
[325149927,1714540260775,-500.0,0.00011506,2]
[325149928,1714540260785,-500.0,0.00011506,2]
[325149929,1714540260795,-500.0,0.00011506,2]
[325149930,1714540260805,-500.0,0.00011506,2]
[325149931,1714540260815,-500.0,0.00011506,2]
[325149932,1714540260824,-500.0,0.00011506,2]
[325149933,1714540260835,-500.0,0.00011506,2]
[325149934,1714540260844,-500.0,0.00011506,2]
[325149935,1714540260854,-500.0,0.00011506,2]
[325149936,1714540260863,-503.60254703,0.00011506,2]
[325149937,1714540260872,-500.0,0.00011506,2]
[325149938,1714540260883,-500.0,0.00011506,2]
[325149939,1714540260895,-500.0,0.00011506,2]
[325149940,1714540260905,-500.0,0.00011506,2]
[325149941,1714540260914,-500.0,0.00011506,2]
[325149942,1714540260923,-500.0,0.00011506,2]
[325149943,1714540260932,-529.91,0.00011506,2]
[325149944,1714540260941,-500.0,0.00011506,2]
[325149945,1714540260950,-500.0,0.00011506,2]
[325149946,1714540260959,-500.0,0.00011506,2]
[325149947,1714540260969,-500.0,0.00011506,2]
[325149948,1714540260978,-500.0,0.00011506,2]
[325149949,1714540260987,-500.0,0.00011506,2]
[325149950,1714540260996,-500.0,0.00011506,2]
[325149951,1714540261005,-500.0,0.00011506,2]
[325149952,1714540261014,-500.0,0.00011506,2]
[325149953,1714540261023,-500.0,0.00011506,2]
[325149954,1714540261033,-500.0,0.00011506,2]
[325149955,1714540261042,-500.0,0.00011506,2]
[325149956,1714540261051,-500.0,0.00011506,2]
[325149957,1714540261060,-500.0,0.00011506,2]
[325149958,1714540261069,-150.0,0.00011506,2]
[325149959,1714540261079,-503.03867347,0.00011506,2]
[325149960,1714540261088,-500.0,0.00011506,2]
[325149961,1714540261097,-500.0,0.00011506,2]
[325149962,1714540261106,-500.0,0.00011506,2]
[325149963,1714540261115,-500.0,0.00011506,2]
[325149964,1714540261124,-522.20277457,0.00011506,2]
[325149965,1714540261133,-500.0,0.00011506,2]
[325149966,1714540261145,-500.0,0.00011506,2]
[325149967,1714540261156,-840.19,0.00011506,2]
[325149968,1714540261165,-500.0,0.00011506,2]
[325149969,1714540261175,-515.08552005,0.00011506,2]
[325149970,1714540261184,-500.0,0.00011506,2]
[325149971,1714540261193,-500.0,0.00011506,2]
[325149972,1714540261203,-500.0,0.00011506,2]
[325149973,1714540261213,-500.0,0.00011506,2]
[325149974,1714540261222,-500.0,0.00011506,2]
[325149975,1714540261232,-500.0,0.00011506,2]
[325149976,1714540261242,-500.0,0.00011506,2]
[325149977,1714540261251,-500.0,0.00011506,2]
[325149978,1714540261261,-500.0,0.00011506,2]
[325149979,1714540261271,-500.0,0.00011506,2]
[325149980,1714540261281,-502.72358096,0.00011506,2]
[325149981,1714540261291,-500.0,0.00011506,2]
[325149982,1714540261302,-367.86219584,0.00011506,2]
[325149983,1714540261311,-500.0,0.00011506,2]
[325149984,1714540261321,-500.0,0.00011506,2]
[325149985,1714540261331,-500.0,0.00011506,2]
[325149986,1714540261340,-245.66799534,0.00011506,2]
[325149987,1714540261349,-500.0,0.00011506,2]
[325149988,1714540261358,-500.0,0.00011506,2]
[325149989,1714540261368,-500.0,0.00011506,2]
[325149990,1714540261377,-500.0,0.00011506,2]
[325149991,1714540261386,-500.0,0.00011506,2]
[325149992,1714540261398,-500.0,0.00011506,2]
[325149993,1714540261407,-500.0,0.00011506,2]
[325149994,1714540261416,-500.0,0.00011506,2]
[325149995,1714540261425,-500.0,0.00011506,2]
[325149996,1714540261436,-525.07333358,0.00011506,2]
[325149997,1714540261448,-500.0,0.00011506,2]
[325149998,1714540261457,-505.03,0.00011506,2]
[325149999,1714540261466,-500.0,0.00011506,2]
[325150000,1714540261476,-500.0,0.00011506,2]
[325150001,1714540261485,-500.0,0.00011506,2]
[325150002,1714540261494,-500.0,0.00011506,2]
[325150003,1714540261509,-500.0,0.00011506,2]
[325150004,1714540261519,-500.0,0.00011506,2]
[325150005,1714540261529,-500.0,0.00011506,2]
[325150006,1714540261539,-500.0,0.00011506,2]
[325150007,1714540261548,-500.0,0.00011506,2]
[325150008,1714540261558,-500.0,0.00011506,2]
[325150009,1714540261567,-500.0,0.00011506,2]
[325150010,1714540261576,-500.0,0.00011506,2]
[325150011,1714540261588,-500.0,0.00011506,2]
[325150012,1714540261597,-500.0,0.00011506,2]
[325150013,1714540261606,-500.0,0.00011506,2]
[325150014,1714540261615,-500.0,0.00011506,2]
[325150015,1714540261624,-500.0,0.00011506,2]
[325150016,1714540261633,-500.0,0.00011506,2]
[325150017,1714540261644,-500.0,0.00011506,2]
[325150018,1714540261653,-500.0,0.00011506,2]
[325150019,1714540261662,-518.13001915,0.00011506,2]
[325150020,1714540261672,-500.0,0.00011506,2]
[325150021,1714540261682,-569.66699739,0.00011506,2]
[325150022,1714540261695,-500.0,0.00011506,2]
[325150023,1714540261710,-500.0,0.00011506,2]
[325150024,1714540261726,-500.0,0.00011506,2]
[325150025,1714540261739,-500.0,0.00011506,2]
[325150026,1714540261751,-500.0,0.00011506,2]
[325150027,1714540261765,-500.0,0.00011506,2]
[325150028,1714540261778,-500.0,0.00011506,2]
[325150029,1714540261792,-500.0,0.00011506,2]
[325150030,1714540261805,-500.0,0.00011506,2]
[325150031,1714540261821,-500.0,0.00011506,2]
[325150032,1714540261835,-810.58,0.00011506,2]
[325150033,1714540261847,-500.0,0.00011506,2]
[325150034,1714540261860,-508.93,0.00011506,2]
[325150035,1714540261874,-510.19393077,0.00011506,2]
[325150036,1714540261887,-500.0,0.00011506,2]
[325150037,1714540261900,-500.0,0.00011506,2]
[325150038,1714540261911,-500.0,0.00011506,2]
[325150039,1714540261924,-500.0,0.00011506,2]
[325150040,1714540261936,-500.0,0.00011506,2]
[325150041,1714540261949,-211.59221189,0.00011506,2]
[325150042,1714540261963,-500.0,0.00011506,2]
[325150043,1714540261977,-559.74585031,0.00011506,2]
[325150044,1714540261992,-500.0,0.00011506,2]
[325150045,1714540262005,-514.24131047,0.00011506,2]
[325150046,1714540262016,-500.0,0.00011506,2]
[325150047,1714540262027,-500.0,0.00011506,2]
[325150048,1714540262039,-500.0,0.00011506,2]
[325150049,1714540262052,-500.0,0.00011506,2]
[325150050,1714540262067,-500.0,0.00011506,2]
[325150051,1714540262078,-554.7798886,0.00011506,2]
[325150052,1714540262091,-500.0,0.00011506,2]
[325150053,1714540262105,-500.0,0.00011506,2]
[325150054,1714540262117,-500.0,0.00011506,2]
[325150055,1714540262128,-500.0,0.00011506,2]
[325150056,1714540262141,-500.0,0.00011506,2]
[325150057,1714540262153,-500.0,0.00011506,2]
[325150058,1714540262165,-500.0,0.00011506,2]
[325150059,1714540262177,-500.0,0.00011506,2]
[325150060,1714540262189,-534.64654271,0.00011506,2]
[325150061,1714540262201,-500.0,0.00011506,2]
[325150062,1714540262213,-516.72839949,0.00011506,2]
[325150063,1714540262225,-498.02781889,0.00011506,2]
[325150064,1714540262236,-500.0,0.00011506,2]
[325150065,1714540262249,-500.0,0.00011506,2]
[325150066,1714540262262,-500.0,0.00011506,2]
[325150067,1714540262274,-500.0,0.00011506,2]
[325150068,1714540262289,-1268.39,0.00011506,2]
[325150069,1714540262301,-500.0,0.00011506,2]
[325150070,1714540262312,-500.0,0.00011506,2]
[325150071,1714540262324,-500.0,0.00011506,2]
[325150072,1714540262336,-500.0,0.00011506,2]
[325150073,1714540262348,-500.0,0.00011506,2]
[325150074,1714540262361,-500.0,0.00011506,2]
[325150075,1714540262373,-500.0,0.00011506,2]
[325150076,1714540262385,-500.0,0.00011506,2]
[325150077,1714540262398,-500.0,0.00011506,2]
[325150078,1714540262410,-500.0,0.00011506,2]
[325150079,1714540262422,-500.0,0.00011506,2]
[325150080,1714540262434,-535.4667846,0.00011506,2]
[325150081,1714540262446,-500.0,0.00011506,2]
[325150082,1714540262458,-500.0,0.00011506,2]
[325150083,1714540262470,-500.0,0.00011506,2]
[325150084,1714540262482,-514.36327911,0.00011506,2]
[325150085,1714540262494,-508.53113868,0.00011506,2]
[325150086,1714540262506,-500.0,0.00011506,2]
[325150087,1714540262522,-500.0,0.00011506,2]
[325150088,1714540262533,-607.00584087,0.00011506,2]
[325150089,1714540262545,-500.0,0.00011506,2]
[325150090,1714540262556,-500.0,0.00011506,2]
[325150091,1714540262567,-500.0,0.00011506,2]
[325150092,1714540262579,-500.0,0.00011506,2]
[325150093,1714540262591,-500.0,0.00011506,2]
[325150094,1714540262603,-500.0,0.00011506,2]
[325150095,1714540262614,-500.0,0.00011506,2]
[325150096,1714540262626,-500.0,0.00011506,2]
[325150097,1714540262637,-500.0,0.00011506,2]
[325150098,1714540262649,-500.0,0.00011506,2]
[325150099,1714540262661,-500.0,0.00011506,2]
[325150100,1714540262672,-500.0,0.00011506,2]
[325150101,1714540262684,-500.0,0.00011506,2]
[325150102,1714540262695,-500.0,0.00011506,2]
[325150103,1714540262708,-500.0,0.00011506,2]
[325150104,1714540262719,-500.0,0.00011506,2]
[325150105,1714540262731,-500.0,0.00011506,2]
[325150106,1714540262743,-500.0,0.00011506,2]
[325150107,1714540262754,-500.0,0.00011506,2]
[325150108,1714540262766,-500.0,0.00011506,2]
[325150109,1714540262779,-500.0,0.00011506,2]
[325150110,1714540262790,-500.0,0.00011506,2]
[325150111,1714540262802,-500.0,0.00011506,2]
[325150112,1714540262814,-500.0,0.00011506,2]
[325150113,1714540262825,-500.0,0.00011506,2]
[325150114,1714540262837,-500.0,0.00011506,2]
[325150115,1714540262849,-500.0,0.00011506,2]
[325150116,1714540262860,-500.0,0.00011506,2]
[325150117,1714540262872,-531.60752377,0.00011506,2]
[325150118,1714540262884,-500.0,0.00011506,2]
[325150119,1714540262897,-500.0,0.00011506,2]
[325150120,1714540262910,-500.0,0.00011506,2]
[325150121,1714540262923,-696.07,0.00011506,2]
[325150122,1714540262935,-500.0,0.00011506,2]
[325150123,1714540262946,-500.0,0.00011506,2]
[325150124,1714540262958,-506.67766187,0.00011506,2]
[325150125,1714540262970,-365.28,0.00011506,2]
[325150126,1714540262982,-500.0,0.00011506,2]
[325150127,1714540262994,-500.0,0.00011506,2]
[325150128,1714540263005,-500.0,0.00011506,2]
[325150129,1714540263017,-500.0,0.00011506,2]
[325150130,1714540263029,-500.0,0.00011506,2]
[325150131,1714540263041,-500.0,0.00011506,2]
[325150132,1714540263053,-1819.92,0.00011506,2]
[325150133,1714540263065,-500.0,0.00011506,2]
[325150134,1714540263077,-500.0,0.00011506,2]
[325150135,1714540263089,-500.0,0.00011506,2]
[325150136,1714540263101,-635.03,0.00011506,2]
[325150137,1714540263114,-500.0,0.00011506,2]
[325150138,1714540263126,-500.0,0.00011506,2]
[325150139,1714540263138,-694.08,0.00011506,2]
[325150140,1714540263151,-500.0,0.00011506,2]
[325150141,1714540263164,-500.0,0.00011506,2]
[325150142,1714540263177,-500.0,0.00011506,2]
[325150143,1714540263189,-500.0,0.00011506,2]
[325150144,1714540263198,-1191.13,0.00011506,2]
[325150145,1714540263208,-500.0,0.00011506,2]
[325150146,1714540263219,-500.0,0.00011506,2]
[325150147,1714540263229,-500.0,0.00011506,2]
[325150148,1714540263239,-759.03,0.00011506,2]
[325150149,1714540263249,-500.0,0.00011506,2]
[325150150,1714540263259,-500.0,0.00011506,2]
[325150151,1714540263269,-514.45510346,0.00011506,2]
[325150152,1714540263278,-520.35676895,0.00011506,2]
[325150153,1714540263288,-511.65812807,0.00011506,2]
[325150154,1714540263299,-500.0,0.00011506,2]
[325150155,1714540263308,-871.25,0.00011506,2]
[325150156,1714540263318,-261.16169892,0.00011506,2]
[325150157,1714540263327,-2329.15,0.00011506,2]
[325150158,1714540263337,-500.0,0.00011506,2]
[325150159,1714540263347,-500.0,0.00011506,2]
[325150160,1714540263356,-620.52,0.00011506,2]
[325150161,1714540263367,-1223.19,0.00011506,2]
[325150162,1714540263376,-510.20753423,0.00011506,2]
[325150163,1714540263386,-500.0,0.00011506,2]
[325150164,1714540263402,-500.0,0.00011506,2]
[325150165,1714540263412,-500.0,0.00011506,2]
[325150166,1714540263422,-841.18,0.00011506,2]
[325150167,1714540263433,-715.46,0.00011506,2]
[325150168,1714540263444,-500.0,0.00011506,2]
[325150169,1714540263455,-692.08,0.00011506,2]
[325150170,1714540263465,-1053.15,0.00011506,2]
[325150171,1714540263476,-500.0,0.00011506,2]
[325150172,1714540263486,-500.0,0.00011506,2]
[325150173,1714540263498,-8586.4,0.00011506,2]
[325150174,1714540263512,-500.0,0.00011506,2]
[325150175,1714540263526,-500.0,0.00011506,2]
[325150176,1714540263535,-500.0,0.00011506,2]
[325150177,1714540263545,-500.0,0.00011506,2]
[325150178,1714540263555,-500.0,0.00011506,2]
[325150179,1714540263564,-500.0,0.00011506,2]
[325150180,1714540263574,-9087.05,0.00011506,2]
[325150181,1714540263583,-500.0,0.00011506,2]
[325150182,1714540263593,-646.59,0.00011506,2]
[325150183,1714540263603,-515.44836003,0.00011506,2]
[325150184,1714540263612,-831.23,0.00011506,2]
[325150185,1714540263621,-500.0,0.00011506,2]
[325150186,1714540263630,-500.0,0.00011506,2]
[325150187,1714540263640,-500.0,0.00011506,2]
[325150188,1714540263989,-500.0,0.00011506,2]
[325150189,1714540264007,-500.0,0.00011506,2]
[325150190,1714540264019,-500.0,0.00011506,2]
[325150191,1714540264028,-500.0,0.00011506,2]
[325150192,1714540264038,-597.32777163,0.00011506,2]
[325150193,1714540264047,-500.0,0.00011506,2]
[325150194,1714540264056,-500.0,0.00011506,2]
[325150195,1714540264066,-500.0,0.00011506,2]
[325150196,1714540264076,-500.0,0.00011506,2]
[325150197,1714540264086,-3756.1,0.00011506,2]
[325150198,1714540264095,-15.29561051,0.00011506,2]
[325150199,1714540264169,-484.70438949,0.00011506,2]
[325150200,1714540264179,-1466.96,0.00011506,2]
[325150201,1714540264188,-500.0,0.00011506,2]
[325150202,1714540264197,-1523.38,0.00011506,2]
[325150203,1714540264205,-500.0,0.00011506,2]
[325150204,1714540264214,-500.0,0.00011506,2]
[325150205,1714540264221,-500.0,0.00011506,2]
[325150206,1714540264230,-641.64,0.00011506,2]
[325150207,1714540264238,-500.0,0.00011506,2]
[325150208,1714540264247,-500.0,0.00011506,2]
[325150209,1714540264255,-334.85761228,0.00011506,2]
[325150210,1714540264266,-3096.18912661,0.00011506,2]
[325150211,1714540264435,-464.15,0.00010805,2]
[325150212,1714540264442,-500.0,0.00010958,2]
[325150213,1714540264451,-28.97736041,0.00010958,2]
[325150214,1714540264471,-444.24779552,0.00010958,2]
[325150215,1714540264490,-26.77484407,0.00010958,2]
[325150216,1714540264499,-500.0,0.00010958,2]
[325150217,1714540264509,-500.0,0.00011232,2]
[325150218,1714540264518,-500.0,0.00011232,2]
[325150219,1714540264526,-500.0,0.00011232,2]
[325150220,1714540264533,-276.29326111,0.00011506,2]
[325150221,1714540264540,-500.0,0.00011506,2]
[325150222,1714540264547,-500.0,0.00011506,2]
[325150223,1714540264555,-500.0,0.00011506,2]
[325150224,1714540264565,-500.0,0.00011506,2]
[325150225,1714540264574,-505.10917833,0.00011506,2]
[325150226,1714540264583,-500.0,0.00011506,2]
[325150227,1714540264593,-500.0,0.00011506,2]
[325150228,1714540264604,-818.26,0.00011506,2]
[325150229,1714540264613,-500.0,0.00011506,2]
[325150230,1714540264623,-500.0,0.00011506,2]
[325150231,1714540264632,-500.0,0.00011506,2]
[325150232,1714540264641,-519.47,0.00011506,2]
[325150233,1714540264652,-500.0,0.00011506,2]
[325150234,1714540264662,-738.57,0.00011506,2]
[325150235,1714540264671,-500.0,0.00011506,2]
[325150236,1714540264681,-500.0,0.00011506,2]
[325150237,1714540264691,-704.79,0.00011506,2]
[325150238,1714540264700,-500.0,0.00011506,2]
[325150239,1714540264709,-500.0,0.00011506,2]
[325150240,1714540264719,-500.0,0.00011506,2]
[325150241,1714540264729,-230.73271649,0.00011506,2]
[325150242,1714540264758,-500.0,0.00010958,2]
[325150243,1714540264768,-202.91768206,0.00011506,2]
[325150244,1714540264780,-66.34960145,0.00011506,2]
[325150245,1714540264790,-500.0,0.00011506,2]
[325150246,1714540264799,-5772.18,0.00011506,2]
[325150247,1714540264809,-258.3152285,0.00011506,2]
[325150248,1714540265435,-3030.99915328,0.00010957,2]
[325150249,1714540265480,-42.67821689,0.00010957,2]
[325150250,1714540265489,-500.0,0.00010958,2]
[325150251,1714540265500,-6.87903121,0.00010958,2]
[325150252,1714540265523,-493.12096879,0.00010958,2]
[325150253,1714540265532,-500.0,0.00011232,2]
[325150254,1714540265544,-500.0,0.00011232,2]
[325150255,1714540265553,-500.0,0.00011232,2]
[325150256,1714540265563,-241.6847715,0.00011506,2]
[325150257,1714540265572,-500.0,0.00011506,2]
[325150258,1714540265583,-1467.28,0.00011506,2]
[325150259,1714540265592,-500.0,0.00011506,2]
[325150260,1714540265603,-1326.51896131,0.00011506,2]
[325150261,1714540265615,-623.14103869,0.00011506,2]
[325150262,1714540265625,-500.0,0.00011506,2]
[325150263,1714540265634,-411.09468084,0.00011506,2]
[325150267,1714540471170,152.8,8.705e-05,2]
[325150272,1714540590804,154.45,9.757e-05,2]
[325150273,1714540591003,154.45,9.884e-05,2]
[325150275,1714540637119,150.36153908,6.183e-05,2]
[325150276,1714540637666,150.36153908,7.31e-05,2]
[325150277,1714540638241,150.36153908,9.584e-05,2]
[325150278,1714540654017,159.75363847,8.953e-05,2]
[325150279,1714540655653,157.0475136,8.177e-05,2]
[325150280,1714540655761,153.82169609,6.311e-05,2]
[325150281,1714540656288,153.82169609,8.31e-05,2]
[325150282,1714540704634,10620.2528,8.31e-05,2]
[325150283,1714540743970,1667.861376,9.953e-05,2]
[325150284,1714540758637,539.35,9.668e-05,2]
[325150285,1714540785154,172.01,9.68e-05,2]
[325150286,1714540802848,427.51019987,0.0001,2]
[325150287,1714540812123,3073.67737017,0.0001,2]
[325150288,1714540889316,250.0,9.664e-05,2]
[325150289,1714540988978,567.32,9.68e-05,2]
[325150293,1714541143618,154.45,9.747e-05,2]
[325150294,1714541153967,-154.45,0.00010001,2]
[325150295,1714541156511,407.27595972,0.0001,2]
[325150296,1714541158200,487.73631676,0.0001,2]
[325150297,1714541166985,212.70011815,9.68e-05,2]
[325150298,1714541179848,152.8,8.219e-05,2]
[325150299,1714541222811,475.2,9.697e-05,2]
[325150328,1714541276586,202.98,9.697e-05,2]
[325150368,1714541433179,-407.27595972,0.00010017,2]
[325150369,1714541433189,-1396.21404028,0.00010017,2]
[325150370,1714541433201,-800.0,0.00010017,2]
[325150371,1714541433212,-914.41526451,0.00010017,2]
[325150372,1714541433239,-4923.90630075,0.00010017,2]
[325150373,1714541433249,-180.02205767,0.00010018,2]
[325150374,1714541433258,-3073.67737017,0.00010022,2]
[325150375,1714541433267,-151.50674154,0.00010023,2]
[325150376,1714541433276,-154.45,0.00010255,2]
[325150377,1714541433286,-150.51007187,0.00010398,2]
[325150378,1714541433296,-151.50674154,0.00010467,2]
[325150379,1714541433304,-655.6,0.00010543,2]
[325150380,1714541433314,-655.6,0.00010546,2]
[325150381,1714541433323,-655.6,0.00010549,2]
[325150382,1714541433332,-499.99,0.00010549,2]
[325150383,1714541433341,-655.6,0.00010552,2]
[325150384,1714541433350,-655.6,0.00010554,2]
[325150385,1714541433360,-655.6,0.00010557,2]
[325150386,1714541433369,-655.6,0.0001056,2]
[325150387,1714541433378,-655.6,0.00010563,2]
[325150388,1714541433387,-655.6,0.00010565,2]
[325150389,1714541433397,-655.6,0.00010568,2]
[325150390,1714541433408,-655.6,0.00010571,2]
[325150391,1714541433417,-655.6,0.00010574,2]
[325150392,1714541433427,-655.6,0.00010577,2]
[325150393,1714541433435,-655.6,0.00010579,2]
[325150394,1714541433445,-655.6,0.00010582,2]
[325150395,1714541433454,-152.8,0.00010585,2]
[325150396,1714541433463,-655.6,0.00010585,2]
[325150397,1714541433473,-655.6,0.00010588,2]
[325150398,1714541433482,-655.6,0.0001059,2]
[325150399,1714541433491,-655.6,0.00010593,2]
[325150400,1714541433501,-655.6,0.00010596,2]
[325150401,1714541433510,-155.75973344,0.00010737,2]
[325150402,1714541433520,-150.51007187,0.00010737,2]
[325150403,1714541433529,-200.0,0.000108,3]
[325150404,1714541433543,-23996.68772368,0.00010856,2]